bitfinex-derivatives/quotes_SOLF0:USTF0_20250928
["timestamp","ask_amount","ask_price","bid_price","bid_amount"]
[1759074599999,7.84,203.23,203.16,11.8879]
[1759074600200,3.47382776,203.22,203.16,11.8879]
[1759074600402,7.84,203.23,203.16,11.8879]
[1759074600606,3.4748598,203.22,203.16,11.8879]
[1759074600799,7.84,203.23,203.16,11.8879]
[1759074601002,3.47482435,203.22,203.16,11.8879]
[1759074601303,7.84,203.23,203.16,7.46]
[1759074601506,4.426,203.26,203.16,9.19666028]
[1759074601507,14.00266028,203.26,203.16,9.19666028]
[1759074601805,3.47489244,203.25,203.16,9.19666028]
[1759074602007,3.47489244,203.24,203.16,9.19666028]
[1759074602202,9.57666028,203.26,203.17,7.46]
[1759074602401,3.47511983,203.25,203.17,7.46]
[1759074602609,3.47511983,203.24,203.17,7.46]
[1759074602802,9.57666028,203.26,203.17,7.46]
[1759074603101,3.47514938,203.25,203.17,7.46]
[1759074603299,7.84,203.23,203.18,4.4276]
[1759074603603,1.73666028,203.22,203.14,128.1]
[1759074603805,1.73666028,203.16,203.1,7.46]
[1759074604798,7.84,203.17,203.1,9.19666028]
[1759074605202,1.73666028,203.18,203.1,9.19666028]
[1759074605403,9.57666028,203.2,203.1,9.19666028]
[1759074605809,7.84,203.2,203.14,4.4284]
[1759074606010,7.84,203.2,203.14,11.8884]
[1759074608411,9.57666028,203.2,203.14,7.46]
[1759074610411,7.84,203.18,203.14,7.46]
[1759074612413,7.84,203.18,203.14,7.35]
[1759074613606,1.73666028,203.2,203.14,7.35]
[1759074613813,7.87,203.18,203.14,7.35]
[1759074614008,1.73666028,203.2,203.14,7.35]
[1759074614212,7.87,203.18,203.14,7.35]
[1759074614915,7.87,203.18,203.13,4.4286]
[1759074615111,7.87,203.18,203.14,7.35]
[1759074616208,6.16396028,203.2,203.14,7.35]
[1759074616410,3.47948718,203.19,203.14,7.35]
[1759074616609,6.16396028,203.2,203.14,7.35]
[1759074616909,3.47948718,203.19,203.13,4.4286]
[1759074617127,14.03396028,203.2,203.14,7.35]
[1759074617317,3.47948718,203.19,203.13,4.4286]
[1759074617517,14.03396028,203.2,203.13,11.7786]
[1759074617818,3.47949795,203.19,203.13,11.7786]
[1759074618023,14.03396028,203.2,203.13,11.7786]
[1759074619115,7.87,203.19,203.13,11.7786]
[1759074619820,7.87,203.19,203.14,4.4284]
[1759074620117,7.87,203.19,203.15,7.35]
[1759074621016,7.87,203.19,203.14,4.4284]
[1759074621217,7.87,203.19,203.15,7.35]
[1759074621826,1.73666028,203.2,203.15,7.35]
[1759074622022,7.87,203.19,203.15,7.35]
[1759074622415,1.73666028,203.22,203.16,7.35]
[1759074622724,7.87,203.23,203.16,1.73666028]
[1759074622922,7.87,203.25,203.19,7.35]
[1759074623122,7.87,203.23,203.19,7.35]
[1759074623329,7.87,203.25,203.19,7.35]
[1759074623623,7.6,203.23,203.19,11.7773]
[1759074623927,7.6,203.23,203.2,7.63]
[1759074624222,9.33666028,203.26,203.2,4.427]
[1759074624419,3.47948448,203.25,203.19,7.63]
[1759074624619,3.47948448,203.24,203.18,9.36666028]
[1759074625822,7.6,203.23,203.19,12.0573]
[1759074626525,7.6,203.23,203.19,4.4273]
[1759074626823,7.6,203.23,203.19,12.0573]
[1759074627026,7.6,203.23,203.19,4.4273]
[1759074627223,7.6,203.23,203.19,12.0573]
[1759074627524,7.6,203.26,203.19,12.0573]
[1759074627726,3.48169241,203.25,203.19,12.0573]
[1759074627925,7.6,203.23,203.19,12.0573]
[1759074628121,7.6,203.23,203.2,7.63]
[1759074630123,1.73666028,203.23,203.16,7.63]
[1759074630428,1.73666028,203.19,203.11,1.73666028]
[1759074630621,3.48753363,203.18,203.11,1.73666028]
[1759074630820,1.73666028,203.19,203.12,7.63]
[1759074631028,3.48753706,203.18,203.12,7.63]
[1759074631224,1.73666028,203.19,203.12,7.63]
[1759074631423,3.48805592,203.18,203.12,7.63]
[1759074631624,1.73666028,203.19,203.13,4.4287]
[1759074631829,11.08805592,203.18,203.14,7.63]
[1759074632032,7.6,203.18,203.14,7.63]
[1759074632326,7.6,203.18,203.14,12.0584]
[1759074633030,7.6,203.18,203.15,12.0582]
[1759074633329,9.33666028,203.21,203.15,4.4282]
[1759074633525,3.488148,203.2,203.16,7.63]
[1759074633731,11.088148,203.19,203.16,7.63]
[1759074633922,3.488148,203.18,203.16,7.63]
[1759074634123,7.6,203.19,203.16,12.0579]
[1759074634421,3.488148,203.18,203.16,12.0579]
[1759074634724,7.6,203.19,203.16,12.0579]
[1759074636828,9.33666028,203.21,203.17,7.63]
[1759074637027,11.08821165,203.2,203.17,7.63]
[1759074637223,3.48821165,203.19,203.17,7.63]
[1759074637421,9.33666028,203.23,203.18,4.4276]
[1759074637625,9.33666028,203.23,203.19,7.63]
[1759074637626,11.08811683,203.22,203.19,7.63]
[1759074637925,3.48811683,203.21,203.19,7.63]
[1759074638131,3.48811683,203.2,203.19,7.63]
[1759074639226,9.33666028,203.25,203.19,12.0572]
[1759074639426,11.08792404,203.24,203.2,7.63]
[1759074639624,3.48792404,203.23,203.2,7.63]
[1759074639827,3.48792404,203.22,203.2,7.63]
[1759074640127,3.48792404,203.21,203.2,7.63]
[1759074640634,3.48792404,203.21,202.76,35.01443522]
[1759074640635,7.6,203.2,203.12,130.00666028]
[1759074640834,3.48792404,203.19,203.12,7.63]
[1759074641035,3.48792404,203.18,203.12,7.63]
[1759074641237,1.73666028,203.19,203.12,7.63]
[1759074641431,3.48870794,203.18,203.12,7.63]
[1759074641630,1.73666028,203.19,203.12,7.63]
[1759074641830,3.48870794,203.18,203.12,7.63]
[1759074642031,1.73666028,203.19,203.12,7.63]
[1759074642233,3.48870794,203.18,203.12,7.63]
[1759074642432,1.73666028,203.19,203.12,7.63]
[1759074642732,1.73666028,203.19,203.1,1.73666028]
[1759074642733,11.08867811,203.18,203.14,12.0583]
[1759074642932,7.6,203.18,203.14,12.0583]
[1759074643235,7.6,203.18,203.15,7.63]
[1759074643430,9.33666028,203.21,203.14,12.0583]
[1759074643735,3.4886548,203.2,203.14,12.0583]
[1759074644036,11.0886548,203.19,203.15,7.63]
[1759074644237,3.4886548,203.18,203.15,7.63]
[1759074644535,7.6,203.19,203.15,7.63]
[1759074644741,3.48863648,203.18,203.15,7.63]
[1759074644940,7.6,203.19,203.15,7.63]
[1759074645142,3.48863731,203.18,203.15,7.63]
[1759074645341,7.6,203.23,203.15,12.0581]
[1759074645642,3.48871825,203.22,203.15,7.63]
[1759074645840,3.48871825,203.21,203.15,7.63]
[1759074646037,9.33666028,203.19,203.13,4.4286]
[1759074646243,7.6,203.17,203.11,7.63]
[1759074646442,7.6,203.17,203.09,1.73666028]
[1759074647547,7.6,203.17,203.11,4.4291]
[1759074647940,7.6,203.17,203.11,13.79576028]
[1759074648337,7.6,203.17,203.11,12.0591]
[1759074650147,7.6,203.17,203.11,7.63]
[1759074650351,3.48988847,203.16,203.11,7.63]
[1759074650549,7.6,203.14,203.11,7.63]
[1759074651644,7.6,203.14,203.08,4.4296]
[1759074651853,3.49046811,203.13,203.07,7.63]
[1759074652050,7.6,203.11,203.07,7.63]
[1759074652252,2.71330991,203.17,203.07,7.63]
[1759074652253,7.6,203.16,203.07,7.63]
[1759074652454,7.6,203.14,203.07,7.63]
[1759074652757,7.91830249,203.13,203.07,7.63]
[1759074652947,4.4288,203.13,203.07,7.63]
[1759074653451,7.6,203.14,203.07,7.63]
[1759074653748,3.48864466,203.13,203.07,7.63]
[1759074653951,7.6,203.14,203.07,7.63]
[1759074654149,3.48864362,203.13,203.09,7.89]
[1759074654356,7.86,203.13,203.09,7.89]
[1759074654749,4.4284,203.15,203.09,7.89]
[1759074654955,7.86,203.13,203.04,129.17145353]
[1759074655253,7.86,203.13,203.04,8.49145353]
[1759074655447,3.48709595,203.12,203.04,8.49145353]
[1759074655642,7.86,203.13,203.04,8.49145353]
[1759074655952,3.48709595,203.12,203.04,8.49145353]
[1759074656143,7.86,203.13,203.04,8.49145353]
[1759074656346,3.48617355,203.12,203.04,8.49145353]
[1759074656549,12.2889,203.13,203.05,4.4304]
[1759074656750,3.48617355,203.12,203.05,4.4304]
[1759074656948,12.2889,203.13,203.05,4.4304]
[1759074657149,3.48617355,203.12,203.05,4.4304]
[1759074657351,12.2889,203.13,203.05,4.4304]
[1759074657548,3.48540782,203.12,203.05,4.4304]
[1759074657754,12.2889,203.13,203.05,4.4304]
[1759074657952,3.48537215,203.12,203.05,4.4304]
[1759074658151,12.2889,203.13,203.05,4.4304]
[1759074658350,3.49279783,203.12,203.05,4.4304]
[1759074658656,12.2889,203.13,203.05,4.4304]
[1759074658856,3.49296413,203.12,203.05,4.4304]
[1759074659051,3.49299986,203.11,203.04,7.89]
[1759074659257,7.86,203.09,203.02,120.68]
[1759074659650,2.71330991,203.13,203.0,7.89]
[1759074659651,7.86,203.07,203.0,7.89]
[1759074659854,7.86,203.07,202.97,7.89]
[1759074662556,7.86,203.07,203.01,4.4313]
[1759074665262,12.2902,203.07,202.98,4.4319]
[1759074666466,12.2902,203.07,202.99,4.4316]
[1759074667262,12.2902,203.07,202.99,12.3216]
[1759074668767,7.86,203.07,202.99,7.89]
[1759074669568,2.71330991,203.07,202.95,7.89]
[1759074669763,2.71330991,203.07,202.95,12.3225]
[1759074670270,7.86,203.03,202.95,12.3225]
[1759074670565,2.71330991,203.04,202.94,120.78]
[1759074670872,7.81,203.03,202.93,4.4331]
[1759074671067,12.2415,203.01,202.93,4.4331]
[1759074671471,12.2415,203.01,202.94,4.4327]
[1759074672270,7.81,203.07,202.94,7.6]
[1759074673063,7.81,203.07,202.96,4.4324]
[1759074673369,2.71330991,203.08,202.96,12.0324]
[1759074673564,4.4306,203.05,202.97,4.4321]
[1759074673868,7.81,203.04,202.97,4.4321]
[1759074674667,12.2409,203.04,202.97,4.4321]
[1759074675067,7.81,203.01,202.92,7.6]
[1759074675470,2.71330991,203.02,202.92,12.0333]
[1759074675871,7.81,203.01,202.92,7.6]
[1759074676675,12.2422,202.98,202.92,7.6]
[1759074677067,12.2422,202.98,202.9,4.4337]
[1759074678674,4.4324,202.97,202.89,7.6]
[1759074678874,7.81,202.96,202.89,7.6]
[1759074680774,7.81,202.96,202.9,4.4336]
[1759074680971,7.81,202.96,202.89,7.6]
[1759074681178,7.81,203.01,202.89,7.6]
[1759074682577,7.81,202.98,202.91,4.4334]
[1759074683382,7.81,202.98,202.92,4.4331]
[1759074686404,7.81,202.98,202.9,4.4337]
[1759074686680,7.81,202.98,202.88,7.43]
[1759074687075,4.4324,202.97,202.88,11.8641]
[1759074687275,7.43,202.96,202.88,11.8641]
[1759074687878,7.43,202.96,202.89,4.4338]
[1759074688079,4.4318,202.99,202.9,7.43]
[1759074688280,7.43,202.98,202.9,7.43]
[1759074688881,7.43,202.98,202.91,7.43]
[1759074690980,7.43,203.0,202.9,4.4337]
[1759074691185,2.71330991,203.01,202.9,4.4337]
[1759074691186,7.43,202.98,202.9,4.4337]
[1759074692089,7.43,202.98,202.92,4.4333]
[1759074692284,7.43,202.98,202.9,7.43]
[1759074692685,7.43,202.97,202.9,11.8637]
[1759074695586,4.4316,203.0,202.92,4.4333]
[1759074695782,10.91381591,202.99,202.9,7.43]
[1759074695976,7.43,202.99,202.9,7.43]
[1759074697190,4.4315,203.01,202.95,7.43]
[1759074697386,10.91574362,203.0,202.95,7.43]
[1759074697583,7.43,203.0,202.95,7.43]
[1759074698590,4.4315,203.01,202.95,7.43]
[1759074698891,3.48691932,203.0,202.94,11.8627]
[1759074699091,11.8615,203.01,202.94,11.8627]
[1759074699290,3.48691849,203.0,202.94,11.8627]
[1759074699483,11.8615,203.01,202.94,11.8627]
[1759074699680,3.48846088,203.0,202.94,11.8627]
[1759074699885,7.43,203.01,202.94,11.8627]
[1759074700080,3.48845984,203.0,202.94,11.8627]
[1759074700284,7.43,203.01,202.95,4.4325]
[1759074700488,10.91997475,203.0,202.95,11.8625]
[1759074700785,7.43,203.0,202.95,11.8625]
[1759074701089,7.43,203.03,202.95,11.8625]
[1759074701294,3.48997475,203.02,202.95,11.8625]
[1759074701486,3.48997475,203.01,202.95,11.8625]
[1759074701686,10.91997475,203.0,202.95,11.8625]
[1759074701884,3.48997475,202.99,202.95,11.8625]
[1759074702292,7.43,202.99,202.95,11.8625]
[1759074702488,7.43,203.01,202.93,4.433]
[1759074702689,7.43,203.01,202.86,68.9834]
[1759074702690,7.43,202.99,202.87,7.43]
[1759074702986,7.43,202.97,202.87,7.43]
[1759074703182,3.49357655,202.96,202.87,7.43]
[1759074703586,3.49357655,202.96,202.9,4.4336]
[1759074703787,3.49357655,202.96,202.9,11.8636]
[1759074704585,3.49357655,202.95,202.9,11.8636]
[1759074704787,7.43,202.94,202.9,11.8636]
[1759074711195,1.74048378,202.97,202.91,11.8633]
[1759074711396,3.50014809,202.96,202.92,7.43]
[1759074711591,1.74048378,202.97,202.91,11.8633]
[1759074711790,3.50119851,202.96,202.92,7.43]
[1759074711992,7.43,202.96,202.92,7.43]
[1759074712593,7.43,202.96,202.92,11.8631]
[1759074712999,7.43,202.97,202.88,7.43]
[1759074713201,5.24291122,202.96,202.88,7.43]
[1759074713399,7.43,202.94,202.9,11.8636]
[1759074713795,8.08,202.95,202.9,11.8636]
[1759074714201,11.58416025,202.94,202.88,4.434]
[1759074714403,8.08,202.94,202.88,4.434]
[1759074714596,11.58665743,202.93,202.88,12.384]
[1759074714791,9.82048378,202.97,202.9,7.95]
[1759074714992,3.50665754,202.96,202.9,7.95]
[1759074715192,3.50665754,202.95,202.88,7.95]
[1759074715495,3.50665754,202.94,202.88,7.95]
[1759074715699,9.82048378,202.97,202.88,7.95]
[1759074715900,3.50689916,202.96,202.88,7.95]
[1759074716095,3.50689916,202.95,202.88,7.95]
[1759074716402,3.50689916,202.94,202.88,7.95]
[1759074716601,9.82048378,202.97,202.9,4.4335]
[1759074716796,3.50713297,202.96,202.9,12.3835]
[1759074717001,3.50713297,202.95,202.88,7.95]
[1759074717207,3.50713297,202.94,202.88,7.95]
[1759074717398,9.82048378,202.97,202.88,7.95]
[1759074717599,3.50751324,202.96,202.88,7.95]
[1759074717799,3.50751324,202.95,202.88,7.95]
[1759074717998,3.50751324,202.94,202.88,7.95]
[1759074718300,9.82048378,202.97,202.88,7.95]
[1759074718501,3.49688983,202.96,202.88,7.95]
[1759074718701,3.49688983,202.95,202.91,12.3833]
[1759074719004,3.49688983,202.94,202.91,12.3833]
[1759074719204,9.82048378,202.97,202.91,12.3833]
[1759074719404,8.08,202.95,202.91,12.3833]
[1759074719604,3.49691007,202.94,202.91,12.3833]
[1759074719802,8.08,202.95,202.91,12.3833]
[1759074719803,3.49691007,202.93,202.91,12.3833]
[1759074720002,8.08,202.95,202.91,12.3833]
[1759074720203,3.4977022,202.94,202.91,4.4333]
[1759074720401,8.08,202.95,202.92,7.95]
[1759074720601,3.49831021,202.94,202.92,7.95]
[1759074720801,8.08,202.95,202.92,7.95]
[1759074721001,3.49831021,202.94,202.92,7.95]
[1759074721202,8.08,202.95,202.92,7.95]
[1759074721397,3.49831007,202.94,202.92,7.95]
[1759074721603,8.08,202.95,202.92,7.95]
[1759074721803,3.49841136,202.94,202.92,7.95]
[1759074722104,6.17248378,202.98,202.91,12.3833]
[1759074722303,3.49839111,202.97,202.91,12.3833]
[1759074722504,11.57839111,202.96,202.92,7.95]
[1759074722705,3.49839111,202.95,202.92,7.95]
[1759074723001,3.49839111,202.94,202.92,7.95]
[1759074723206,8.08,202.96,202.92,7.95]
[1759074723403,3.49854631,202.95,202.92,7.95]
[1759074723609,3.49854631,202.94,202.92,7.95]
[1759074723804,8.08,202.96,202.92,7.95]
[1759074724004,3.49864157,202.95,202.92,7.95]
[1759074724206,3.49864157,202.94,202.92,7.95]
[1759074724505,8.08,202.96,202.92,7.95]
[1759074724803,3.49863659,202.95,202.92,7.95]
[1759074725004,3.49863659,202.94,202.92,7.95]
[1759074725309,6.17248378,202.98,202.91,12.3833]
[1759074725505,3.49865725,202.97,202.91,12.3833]
[1759074725705,11.57865725,202.96,202.92,7.95]
[1759074725907,3.49865725,202.95,202.92,7.95]
[1759074726204,3.49865725,202.94,202.92,7.95]
[1759074726403,8.08,202.96,202.92,7.95]
[1759074726700,3.49879597,202.95,202.92,7.95]
[1759074727000,3.49879597,202.94,202.92,7.95]
[1759074727202,8.08,202.96,202.92,7.95]
[1759074727407,3.49879597,202.95,202.92,7.95]
[1759074727606,3.49879597,202.94,202.92,7.95]
[1759074727801,8.08,202.96,202.92,7.95]
[1759074727998,3.4989259,202.95,202.92,7.95]
[1759074728195,8.08,202.96,202.93,7.95]
[1759074728401,3.49874075,202.95,202.93,7.95]
[1759074728600,8.08,202.96,202.93,7.95]
[1759074728804,3.49889131,202.95,202.93,7.95]
[1759074728997,8.08,202.96,202.93,7.95]
[1759074729203,3.49889131,202.95,202.92,4.4331]
[1759074729407,3.49889131,202.94,202.93,7.95]
[1759074729805,6.17198378,203.0,202.95,7.95]
[1759074730106,8.08,202.98,202.95,7.95]
[1759074730310,3.49895535,202.97,202.95,7.95]
[1759074730607,3.49895535,202.96,202.95,7.95]
[1759074733611,3.49895535,202.96,202.95,12.3825]
[1759074739910,8.08,202.99,202.95,12.3825]
[1759074740114,3.4986869,202.98,202.96,7.34]
[1759074740312,3.4986869,202.97,202.96,7.34]
[1759074749417,3.50058418,202.97,202.96,7.34]
[1759074751718,1.74048378,203.02,202.97,4.4321]
[1759074751921,10.92966012,203.01,202.98,7.62]
[1759074752118,3.49966012,203.0,202.98,7.62]
[1759074752316,3.49966012,202.99,202.98,7.62]
[1759074754018,7.43,202.98,202.97,4.4321]
[1759074754217,10.92872467,202.98,202.97,4.4321]
[1759074754519,3.49872467,202.98,202.97,12.0521]
[1759074755525,7.43,203.01,202.97,4.4321]
[1759074755723,10.92794395,203.0,202.97,12.0521]
[1759074755921,3.49794395,202.99,202.97,12.0521]
[1759074756121,7.43,203.0,202.97,12.0521]
[1759074756321,3.49794655,202.99,202.97,12.0521]
[1759074756522,7.43,203.0,202.97,12.0521]
[1759074756725,3.49750933,202.99,202.97,12.0521]
[1759074756924,7.43,203.0,202.97,12.0521]
[1759074758024,7.43,203.0,202.98,12.0517]
[1759074761041,7.43,203.0,202.98,7.62]
[1759074768651,1.74048378,203.03,202.97,4.432]
[1759074768848,10.92578875,203.02,202.99,7.62]
[1759074769049,3.49578875,203.01,202.99,7.62]
[1759074769248,3.49578875,203.0,202.99,7.62]
[1759074771254,7.43,203.02,202.99,7.62]
[1759074771454,3.49590529,203.01,202.99,7.62]
[1759074771654,7.43,203.02,202.99,7.62]
[1759074771848,3.49590529,203.01,202.99,7.62]
[1759074772044,7.43,203.02,202.99,7.62]
[1759074772354,3.49590529,203.01,202.99,7.62]
[1759074772554,7.43,203.02,202.99,7.62]
[1759074772756,3.4959975,203.01,202.99,7.62]
[1759074772948,7.43,203.02,202.99,7.62]
[1759074773149,10.9259975,203.01,202.99,7.62]
[1759074773353,7.43,203.01,202.99,7.62]
[1759074773753,7.47,203.07,203.01,7.64]
[1759074773958,3.4954074,203.06,203.0,7.64]
[1759074774160,7.47,203.1,203.0,7.64]
[1759074774460,3.49491047,203.09,203.04,7.64]
[1759074774659,3.49491047,203.08,203.04,7.64]
[1759074774854,7.47,203.1,203.08,12.0697]
[1759074775163,3.49268908,203.09,203.08,12.0697]
[1759074775459,7.47,203.1,203.08,12.0697]
[1759074777563,7.47,203.12,203.08,12.0697]
[1759074777749,3.48689983,203.11,203.08,12.0697]
[1759074778060,7.89841408,203.13,203.09,7.64]
[1759074778359,3.47886712,203.12,203.09,7.64]
[1759074778659,7.89841408,203.13,203.09,7.64]
[1759074778957,3.47733005,203.12,202.94,77.21769801]
[1759074779155,3.14627853,203.13,203.0,120.64]
[1759074779156,7.47,203.1,203.0,120.64]
[1759074779356,7.47,203.1,203.01,7.64]
[1759074779554,3.4768348,203.09,203.01,7.64]
[1759074779754,7.47,203.1,203.01,7.64]
[1759074779956,3.4768349,203.09,203.01,7.64]
[1759074780157,7.47,203.1,203.01,7.64]
[1759074780356,3.47683501,203.09,203.01,7.64]
[1759074780563,7.47,203.1,203.04,4.4305]
[1759074780759,7.47,203.08,203.04,12.0705]
[1759074781156,7.47,203.08,203.04,4.4305]
[1759074781458,7.47,203.08,203.05,7.64]
[1759074781855,4.429,203.12,203.06,7.64]
[1759074782061,3.47636937,203.11,203.04,7.64]
[1759074782262,7.89841408,203.13,203.04,7.64]
[1759074783454,7.89841408,203.13,203.09,7.64]
[1759074784458,0.42841408,203.13,203.09,7.64]
[1759074784756,7.47,203.12,203.09,7.64]
[1759074791469,7.47,203.12,203.09,12.0694]
[1759074792974,10.68786445,203.16,203.1,4.4291]
[1759074793161,7.97,203.14,203.1,12.4691]
[1759074793366,2.71786445,203.16,203.1,12.4691]
[1759074793574,7.97,203.14,203.1,12.4691]
[1759074794669,2.71786445,203.16,203.1,12.4691]
[1759074794871,7.97,203.14,203.1,12.4691]
[1759074795072,2.71786445,203.16,203.1,12.4691]
[1759074795271,7.97,203.14,203.1,12.4691]
[1759074795472,7.97,203.15,203.1,8.04]
[1759074795673,2.71786445,203.16,203.1,8.04]
[1759074795972,7.97,203.14,203.1,8.04]
[1759074796177,2.71786445,203.16,203.1,8.04]
[1759074796376,3.46967951,203.15,203.1,8.04]
[1759074796577,2.71786445,203.16,203.1,8.04]
[1759074796775,7.97,203.14,203.1,8.04]
[1759074797074,7.97,203.15,203.1,8.04]
[1759074797274,2.71786445,203.16,203.1,8.04]
[1759074797477,7.97,203.14,203.07,8.04]
[1759074797778,7.97,203.12,203.03,8.04]
[1759074797976,7.97,203.09,202.97,2.71786445]
[1759074798183,7.97,203.09,202.99,8.04]
[1759074799379,7.97,203.09,203.03,8.04]
[1759074800679,7.97,203.09,203.03,12.4705]
[1759074801176,7.97,203.09,203.03,8.04]
[1759074802681,7.97,203.09,203.04,4.4304]
[1759074802882,7.97,203.09,203.05,8.04]
[1759074803372,7.97,203.09,203.04,4.4304]
[1759074803571,69.30592608,203.18,203.06,7.79]
[1759074803572,7.75,203.13,203.06,7.79]
[1759074804185,7.75,203.13,203.07,4.4297]
[1759074807084,7.75,203.13,203.06,7.79]
[1759074807285,7.75,203.11,203.03,7.79]
[1759074809587,7.75,203.11,203.04,4.4304]
[1759074811385,3.47827278,203.1,203.04,4.4304]
[1759074811584,7.75,203.11,203.04,4.4304]
[1759074811887,3.47827278,203.1,203.04,4.4304]
[1759074812088,7.75,203.11,203.04,4.4304]
[1759074812283,6.19613723,203.1,202.99,7.79]
[1759074812487,11.22827278,203.09,202.99,7.79]
[1759074812780,7.75,203.07,202.99,7.79]
[1759074812988,7.75,203.07,203.01,7.79]
[1759074813487,7.75,203.09,202.98,7.79]
[1759074813688,7.75,203.07,202.98,7.79]
[1759074814188,12.18,203.07,202.98,12.2216]
[1759074814384,7.75,203.06,202.98,12.2216]
[1759074816892,7.75,203.06,202.99,7.79]
[1759074817284,3.48626583,203.05,202.99,7.79]
[1759074817485,7.75,203.06,202.99,7.79]
[1759074817686,3.48600446,203.05,202.99,7.79]
[1759074817886,7.75,203.06,202.99,7.79]
[1759074818087,3.48600446,203.05,202.99,7.79]
[1759074818294,7.75,203.06,202.99,7.79]
[1759074818482,3.48748494,203.05,202.99,7.79]
[1759074818688,7.75,203.06,202.99,7.79]
[1759074818885,3.48740192,203.05,202.99,7.79]
[1759074819084,7.75,203.06,202.99,7.79]
[1759074819295,3.48740109,203.05,202.99,7.79]
[1759074819498,7.75,203.06,202.99,7.79]
[1759074819694,3.48734141,203.05,202.99,7.79]
[1759074819898,7.75,203.06,202.99,7.79]
[1759074820093,3.48734141,203.05,202.99,7.79]
[1759074820390,3.48754153,203.04,202.96,7.79]
[1759074820590,7.75,203.07,202.96,7.79]
[1759074820786,4.4305,203.04,202.96,7.79]
[1759074820986,11.23754817,203.03,202.96,7.79]
[1759074821190,3.48754817,203.02,202.96,7.79]
[1759074821386,7.75,203.03,202.96,7.79]
[1759074821586,3.48640642,203.02,202.96,7.79]
[1759074821793,7.75,203.03,202.96,7.79]
[1759074821995,3.48640724,203.02,202.96,7.79]
[1759074822194,7.75,203.04,202.96,7.79]
[1759074822493,7.75,203.02,202.96,7.79]
[1759074822795,12.1809,203.02,202.96,7.79]
[1759074823900,7.75,203.02,202.96,7.79]
[1759074824793,7.75,203.05,202.96,7.79]
[1759074825296,3.48287552,203.04,202.96,7.79]
[1759074825497,7.75,203.05,202.96,7.79]
[1759074825696,3.48239258,203.04,202.97,4.4317]
[1759074825998,7.75,203.05,202.98,7.79]
[1759074826199,3.48237463,203.04,202.98,7.79]
[1759074826497,7.75,203.05,202.98,7.79]
[1759074826697,3.48187801,203.04,202.98,7.79]
[1759074826898,7.75,203.05,202.98,7.79]
[1759074827096,3.48187801,203.04,202.98,7.79]
[1759074827303,7.75,203.05,202.98,7.79]
[1759074827602,3.48148848,203.04,202.98,7.79]
[1759074827801,7.75,203.05,202.98,7.79]
[1759074828701,7.75,203.05,202.98,12.2215]
[1759074831203,7.75,203.05,202.99,4.4313]
[1759074831405,7.75,203.05,203.0,7.79]
[1759074831895,9.48882342,203.06,202.99,12.2213]
[1759074833094,7.75,203.06,202.99,7.79]
[1759074833398,7.75,203.09,203.02,7.79]
[1759074833596,3.48064864,203.08,203.02,7.79]
[1759074833800,7.75,203.09,203.02,7.79]